bitfinex/quotes_ETHUSD_20230903
["timestamp","ask_amount","ask_price","bid_price","bid_amount"]
[1693767809976,3.5322,1638.9,1638.7,1.61975885]
[1693767810270,3.5322,1638.9,1638.7,0.55922375]
[1693767813249,1.9792,1638.9,1638.7,0.55922375]
[1693767815900,1.9792,1638.9,1638.6,3.89368867]
[1693767816046,1.9792,1638.9,1638.6,3.08185404]
[1693767820962,1.9792,1638.9,1638.5,7.05781119]
[1693767821306,1.9792,1638.9,1638.6,1.06050025]
[1693767823283,3.5322,1638.9,1638.6,1.06050025]
[1693767824507,0.17401186,1638.8,1638.6,1.06050025]
[1693767824710,0.17401186,1638.8,1638.6,2.1805168]
[1693767824870,2.0601,1638.8,1638.6,1.12001655]
[1693767826316,2.0601,1638.8,1638.7,1.06049049]
[1693767829122,2.0601,1638.8,1638.6,1.69850423]
[1693767830815,0.17244545,1638.7,1638.6,1.69850423]
[1693767831190,4.3905,1638.8,1638.6,1.69850423]
[1693767831624,0.17244545,1638.7,1638.6,1.69850423]
[1693767834824,0.17244545,1638.7,1638.6,1.06049049]
[1693767837223,0.17244545,1638.7,1638.6,1.69850423]
[1693767838700,6.32859607,1638.7,1638.6,1.69850423]
[1693767838901,6.32859607,1638.7,1638.6,0.63801374]
[1693767853251,0.17244545,1638.7,1638.6,0.63801374]
[1693767875212,0.17244545,1638.7,1638.4,51.6870295]
[1693767875213,0.17244545,1638.7,1638.4,48.29]
[1693767875407,0.17244545,1638.7,1638.6,0.64099973]
[1693767875703,2.16014545,1638.7,1638.6,0.64099973]
[1693767878194,0.17244545,1638.7,1638.6,0.64099973]
[1693767878401,0.17244545,1638.7,1638.6,6.72285377]
[1693767878600,2.4438,1639.1,1638.6,9.82531351]
[1693767878807,1.553,1639.4,1638.9,0.64075155]
[1693767879012,2.4438,1639.3,1638.9,3.72260559]
[1693767879172,4.4025,1639.3,1639.0,1.06049977]
[1693767879374,1.3258249,1639.7,1639.4,3.0]
[1693767879575,1.007071,1639.7,1639.5,3.08185404]
[1693767879805,1.007071,1639.7,1639.3,0.64075155]
[1693767880108,0.16636141,1639.6,1639.1,35.72362809]
[1693767880314,1.007071,1639.7,1639.2,4.63246947]
[1693767880477,2.560071,1639.7,1639.2,1.59074966]
[1693767880676,0.16575447,1639.5,1639.2,2.65085883]
[1693767880981,2.560071,1639.7,1639.1,34.13260559]
[1693767881301,0.16550443,1639.4,1639.2,1.06011327]
[1693767881697,2.560071,1639.7,1639.2,1.06011327]
[1693767881913,3.04023997,1639.7,1639.2,1.06011327]
[1693767882114,3.04023997,1639.7,1639.1,33.49185404]
[1693767882311,0.16581098,1639.6,1639.1,33.49185404]
[1693767882512,2.52691098,1639.6,1639.1,39.2843358]
[1693767884787,4.48991098,1639.6,1639.1,39.2843358]
[1693767884987,4.48991098,1639.6,1639.2,1.06009108]
[1693767885404,4.48991098,1639.6,1639.1,10.46447205]
[1693767885608,4.48991098,1639.6,1639.2,1.06009192]
[1693767885788,5.24292608,1639.6,1639.2,1.06009192]
[1693767890320,6.79592608,1639.6,1639.2,1.06009192]
[1693767892123,6.79592608,1639.6,1639.2,1.70084347]
[1693767892695,6.79592608,1639.6,1639.2,1.06009192]
[1693767892896,6.79592608,1639.6,1639.2,1.70084347]
[1693767897635,1.553,1639.5,1639.2,1.70084347]
[1693767898139,0.15626428,1639.4,1639.2,1.70084347]
[1693767898437,0.15010082,1639.3,1639.2,2.77445896]
[1693767898638,1e-08,1639.3,1639.2,2.77445896]
[1693767898846,2.3287,1639.4,1639.2,2.77445896]
[1693767899138,2.3287,1639.4,1639.3,1.06009192]
[1693767899521,2.47318101,1639.4,1639.3,1.06009192]
[1693767904150,2.47318101,1639.4,1639.3,1.70084347]
[1693767904352,2.47318101,1639.4,1639.3,2.0744021]
[1693767907283,2.47318101,1639.4,1639.3,2.07100331]
[1693767908831,2.47318101,1639.4,1639.3,2.06463931]
[1693767909969,2.47318101,1639.4,1639.3,1.69744468]
[1693767910336,2.47318101,1639.4,1639.3,0.6373798]
[1693767913975,2.47318101,1639.4,1639.3,0.63778914]
[1693767915041,4.02618101,1639.4,1639.2,1.69787062]
[1693767915291,4.02618101,1639.4,1639.2,0.63778914]
[1693767915292,0.4026181,1639.3,1639.2,0.63778914]
[1693767915474,0.4026181,1639.3,1639.2,1.06019733]
[1693767915651,0.15381756,1639.3,1639.2,0.63778914]
[1693767916052,5.9422,1639.4,1639.2,0.63778914]
[1693767922894,5.9422,1639.4,1639.2,1.59447285]
[1693767923260,12.04203,1639.4,1639.2,1.59447285]
[1693767923588,2.757203,1639.3,1639.2,1.59447285]
[1693767923790,2.757203,1639.3,1639.2,0.95668371]
[1693767924900,2.757203,1639.3,1639.2,1.59678652]
[1693767925895,2.757203,1639.3,1639.2,1.70030014]
[1693767926065,2.757203,1639.3,1639.2,0.64010281]
[1693767926777,2.757203,1639.3,1639.2,1.70030014]
[1693767927296,2.757203,1639.3,1639.2,0.64010281]
[1693767928909,2.757203,1639.3,1639.2,1.06019733]
[1693767929065,2.757203,1639.3,1639.1,1.59678652]
[1693767929272,1.553,1639.2,1639.1,1.59678652]
[1693767929763,1.70443405,1639.2,1639.1,1.70030014]
[1693767929967,1.70443405,1639.2,1639.1,0.64010281]
[1693767930394,1.70443405,1639.2,1639.1,1.70030014]
[1693767930597,1.70443405,1639.2,1639.1,0.64010281]
[1693767930769,1.70443405,1639.2,1639.1,1.70030014]
[1693767930965,1.70443405,1639.2,1639.1,0.64010281]
[1693767931866,1.70443405,1639.2,1639.0,1.59678652]
[1693767932516,1.553,1639.2,1639.0,1.59678652]
[1693767932804,1.553,1639.2,1639.0,0.64010281]
[1693767933700,1.553,1639.2,1639.0,1.70030014]
[1693767933866,1.553,1639.2,1639.1,1.06019733]
[1693767934077,1.553,1639.2,1639.0,0.64010281]
[1693767934694,1.553,1639.2,1638.9,0.64010281]
[1693767934995,4.001,1639.2,1638.9,1.70035365]
[1693767935183,4.001,1639.2,1639.0,1.06025084]
[1693767935378,4.001,1639.2,1638.9,0.64010281]
[1693767936117,4.001,1639.2,1638.8,3.18690874]
[1693767936416,4.001,1639.2,1638.8,8.14753905]
[1693767936582,4.001,1639.2,1638.9,1.06025161]
[1693767936984,4.001,1639.2,1638.8,2.23022503]
[1693767937183,4.001,1639.2,1638.8,3.29047727]
[1693767937882,4.001,1639.2,1638.9,1.06025224]
[1693767938083,4.60058,1639.2,1638.8,2.23022503]
[1693767938279,4.001,1639.2,1638.8,3.29049032]
[1693767941217,2.448,1639.2,1638.9,1.06026529]
[1693767941421,1.553,1639.0,1638.8,1.59012222]
[1693767941627,1.553,1639.0,1638.7,31.05010281]
[1693767941819,1.553,1639.0,1638.8,1.0603309]
[1693767942420,1.553,1639.0,1638.7,0.64010281]
[1693767942630,1.553,1639.0,1638.7,1.7004314]
[1693767947853,1.553,1639.0,1638.8,1.06032615]
[1693767948016,1.553,1639.0,1638.7,0.63972133]
[1693767948214,1.553,1639.0,1638.7,1.7000478]
[1693767948444,1.553,1638.9,1638.6,2.75758922]
[1693767948651,1.553,1638.8,1638.6,1.59048922]
[1693767948815,8.00519,1639.0,1638.5,50.2098597]
[1693767948816,1.553,1638.7,1638.5,48.47163837]
[1693767949542,1.553,1638.8,1638.5,48.47163837]
[1693767949745,1.553,1638.8,1638.5,53.38277434]
[1693767949945,3.5919,1638.8,1638.5,53.38277434]
[1693767950915,3.5919,1638.8,1638.6,1.06049089]
[1693767953149,3.5919,1638.8,1638.5,0.63972133]
[1693767953363,1.553,1638.8,1638.5,1.70020472]
[1693767953525,1.553,1638.7,1638.4,0.63972133]
[1693767953849,3.8449,1638.7,1638.4,1.59930333]
[1693767954152,5.8016,1638.7,1638.4,1.59930333]
[1693767954721,5.8016,1638.7,1638.5,1.06053117]
[1693767954939,5.8016,1638.7,1638.4,0.63972133]
[1693767955455,5.8016,1638.7,1638.4,1.59930333]
[1693767956857,5.8016,1638.7,1638.5,1.70026211]
[1693767957058,4.2486,1638.7,1638.6,1.06054078]
[1693767957254,4.2486,1638.7,1638.4,1.59930333]
[1693767957460,4.2486,1638.7,1638.5,1.70026211]
[1693767957920,4.2486,1638.7,1638.6,1.06054078]
[1693767958123,5.8016,1638.7,1638.5,0.63972133]
[1693767959660,4.2486,1638.7,1638.5,0.63972133]
[1693767964952,4.2486,1638.7,1638.5,1.70026211]
[1693767965141,4.2486,1638.7,1638.6,1.06054078]
[1693767965542,4.2486,1638.7,1638.5,0.63972133]
[1693767965939,4.2486,1638.7,1638.5,1.70026211]
[1693767966168,4.2486,1638.7,1638.6,1.06054078]
[1693767966732,4.2486,1638.7,1638.5,0.63972133]
[1693767968064,4.1986,1638.7,1638.5,1.70026211]
[1693767968362,4.1986,1638.7,1638.6,1.06054078]
[1693767969061,4.1986,1638.7,1638.5,0.63972133]
[1693767971077,4.1486,1638.7,1638.5,0.63972133]
[1693767973259,4.1486,1638.7,1638.4,1.59930333]
[1693767973260,5.7016,1638.7,1638.4,1.59930333]
[1693767973583,1.553,1638.5,1638.4,0.63972133]
[1693767973754,1.553,1638.6,1638.4,0.63972133]
[1693767974156,3.5852,1638.6,1638.4,0.63972133]
[1693767979474,3.5352,1638.6,1638.4,0.63972133]
[1693767983396,3.4852,1638.6,1638.4,0.63972133]
[1693767983797,3.4852,1638.6,1638.4,1.70034724]
[1693767984002,3.4852,1638.6,1638.5,1.06062591]
[1693767984437,3.4852,1638.6,1638.4,0.63972133]
[1693767986715,3.4852,1638.6,1638.4,1.59930333]
[1693767987380,3.4352,1638.6,1638.4,1.59930333]
[1693767987581,3.5852,1638.6,1638.4,1.59930333]
[1693767991720,3.5852,1638.6,1638.5,1.70034724]
[1693767991931,3.5852,1638.6,1638.5,1.06062591]
[1693767992430,3.5852,1638.6,1638.4,1.59930333]
[1693767992594,3.5852,1638.6,1638.5,1.70034724]
[1693767992787,3.5852,1638.6,1638.5,0.63972133]
[1693767995323,1.553,1638.8,1638.5,0.63972133]
[1693767995621,3.0,1638.8,1638.5,0.63972133]
[1693767996816,3.0,1638.8,1638.5,1.70034724]
[1693767997017,3.0,1638.8,1638.6,1.06062591]
[1693767997233,3.0,1638.8,1638.5,0.63972133]
[1693767998353,0.48515794,1638.9,1638.6,3.72157537]
[1693767998626,1.553,1639.3,1638.8,0.63972133]
[1693767998834,3.841,1639.3,1638.7,1.97146087]
[1693767999005,3.841,1639.3,1638.8,1.06036488]
[1693767999412,5.8637,1639.3,1638.8,1.06036488]
[1693768000623,6.34038304,1639.3,1638.8,1.06036488]
[1693768000803,6.34038304,1639.3,1638.8,1.38036926]
[1693768001025,6.34038304,1639.3,1638.8,0.32000438]
[1693768005112,6.34038304,1639.3,1638.7,1.49995754]
[1693768005537,6.34038304,1639.3,1638.8,1.06032748]
[1693768005910,6.34038304,1639.3,1638.7,1.49995754]
[1693768010342,1.553,1639.2,1638.7,1.49995754]
[1693768010916,2.0685,1639.1,1638.7,1.49995754]
[1693768013111,2.0685,1639.1,1638.7,0.37215754]
[1693768016753,2.0685,1639.1,1638.7,2.07221504]
[1693768016931,2.0685,1639.1,1638.8,1.06033617]
[1693768024255,2.0685,1639.1,1638.9,0.26368784]
[1693768024651,2.0685,1639.1,1638.7,2.10147887]
[1693768024956,2.0685,1639.1,1638.8,1.06032062]
[1693768026866,2.0685,1639.1,1638.7,1.97146087]
[1693768027062,2.0685,1639.1,1638.8,1.06032039]
[1693768029657,2.0685,1639.1,1638.8,1.70004172]
[1693768029852,2.0685,1639.1,1638.9,1.06032039]
[1693768030059,2.0685,1639.1,1638.8,0.63972133]
[1693768030435,2.0685,1639.1,1638.8,1.70003771]
[1693768033566,2.0685,1639.1,1638.8,0.63972133]
[1693768033751,2.0685,1639.1,1638.8,1.70003771]
[1693768034439,2.0685,1639.1,1638.9,0.26436678]
[1693768034774,2.0685,1639.1,1638.8,0.63972133]
[1693768035172,4.5537,1639.1,1638.8,1.70003556]
[1693768036176,6.1067,1639.1,1638.8,1.70003556]
[1693768037584,6.1067,1639.1,1638.8,2.65961756]
[1693768039563,6.1067,1639.1,1638.9,0.63972133]
[1693768040161,6.71737,1639.1,1638.9,0.63972133]
[1693768042358,5.16437,1639.1,1638.8,0.63972133]
[1693768042570,1.553,1638.9,1638.8,0.63972133]
[1693768042861,1.553,1638.9,1638.8,1.06040681]
[1693768043560,1.553,1638.9,1638.7,1.59930333]
[1693768043759,1.553,1638.9,1638.8,1.06040681]
[1693768044005,1.909,1638.9,1638.7,0.63972133]
[1693768046202,1.909,1638.9,1638.6,1.59930333]
[1693768046404,1.909,1638.9,1638.6,2.65976298]
[1693768046405,4.2238,1638.9,1638.6,2.65976298]
[1693768046781,1.553,1638.7,1638.6,2.65976298]
[1693768046983,1.553,1638.7,1638.6,1.70018098]
[1693768047877,1.553,1638.7,1638.6,0.63972133]
[1693768048586,1.553,1638.7,1638.5,1.59930333]
[1693768049615,1.553,1638.7,1638.6,1.32621084]
[1693768056130,1.553,1638.7,1638.6,0.26575119]
[1693768056439,1.553,1638.7,1638.4,1.59930333]
[1693768056596,1.553,1638.7,1638.4,3.79657292]
[1693768056890,1.553,1638.7,1638.5,1.06049218]
[1693768057190,3.9701,1638.7,1638.5,1.06049218]
[1693768064538,3.9701,1638.7,1638.6,0.26588182]
[1693768065203,3.9701,1638.7,1638.4,1.77649874]
[1693768065405,3.9701,1638.7,1638.5,1.06049629]
[1693768069237,2.0434,1638.8,1638.4,1.77656426]
[1693768069417,2.3185,1638.9,1638.5,1.70028231]
[1693768070725,4.3134,1638.9,1638.5,4.78213635]
[1693768070927,2.3185,1638.9,1638.6,1.5387091]
[1693768071141,2.3185,1638.9,1638.7,1.06049546]
[1693768077010,1.9561,1639.0,1638.7,1.06049546]
[1693768077210,1.9561,1639.0,1638.6,2.07768077]
[1693768077211,4.3301,1639.0,1638.6,2.07768077]
[1693768077410,4.553,1639.2,1638.7,1.06035255]
[1693768077610,2.3705,1639.1,1638.7,1.06035255]
[1693768078166,4.3636,1639.1,1638.7,1.7001394]
[1693768078846,4.3636,1639.1,1638.8,1.06035255]
[1693768079052,4.3636,1639.1,1638.7,1.7001394]
[1693768079258,4.3636,1639.1,1638.8,1.06034412]
[1693768079453,4.3636,1639.1,1638.7,0.63978685]
[1693768079631,4.3636,1639.1,1638.9,0.26520271]
[1693768080051,4.3636,1639.1,1638.7,0.63978685]
[1693768080244,4.3636,1639.1,1638.7,1.70013083]
[1693768084273,4.3636,1639.1,1638.7,2.5999929]
[1693768084570,4.3636,1639.1,1638.8,1.06034398]
[1693768088636,5.9166,1639.1,1638.8,1.06034398]
[1693768088839,5.9166,1639.1,1638.7,0.63978685]
[1693768089068,5.9166,1639.1,1638.7,1.70014398]
[1693768089392,6.80826,1639.1,1638.7,1.70014398]
[1693768089874,1.9912,1639.0,1638.7,1.70014398]
[1693768091379,1.9912,1639.0,1638.6,3.08185404]
[1693768091578,1.9912,1639.0,1638.7,1.70043461]
[1693768091887,1.9912,1639.0,1638.7,2.27467514]
[1693768092051,1.9912,1639.0,1638.8,1.06035687]
[1693768094771,1.9912,1639.0,1638.9,0.3372053]
[1693768094957,1.9912,1639.0,1638.7,1.21431827]
[1693768095156,1.9912,1639.0,1638.8,1.06034058]
[1693768105878,1.9912,1639.0,1638.7,0.64007774]
[1693768106078,1.9912,1639.0,1638.7,1.06037851]
[1693768107608,1.9912,1639.0,1638.7,1.70045625]
[1693768108190,3.5442,1639.0,1638.7,1.70045625]
[1693768108888,3.5442,1639.0,1638.8,1.06037861]
[1693768109188,3.5442,1639.0,1638.7,0.64027822]
[1693768109389,3.5442,1639.0,1638.9,0.33742072]
[1693768109590,4.18400874,1639.0,1638.9,0.33742072]
[1693768109801,4.18400874,1639.0,1638.7,0.64027822]
[1693768109996,3.5442,1639.0,1638.7,1.70065924]
[1693768112613,1.9912,1639.0,1638.7,1.70065924]
[1693768117215,1.9912,1639.0,1638.7,2.66107658]
[1693768117802,1.9912,1639.0,1638.8,1.06038102]
[1693768118014,1.9912,1639.0,1638.7,1.70065924]
[1693768118341,1.9912,1639.0,1638.8,1.06039044]
[1693768118538,1.9912,1639.0,1638.7,0.64027822]
[1693768118834,4.18400874,1639.0,1638.7,1.70066862]
[1693768124549,4.18400874,1639.0,1638.8,0.33768935]
[1693768125143,1.553,1638.9,1638.8,0.33768935]
[1693768125343,10.65465,1638.9,1638.8,0.33768935]
[1693768125646,13.35879887,1638.9,1638.5,32.01069556]
[1693768125856,15.64679887,1638.9,1638.6,1.06051868]
[1693768126146,15.64679887,1638.9,1638.5,0.64027822]
[1693768126748,15.64679887,1638.9,1638.5,1.70079988]
[1693768126960,2.0601,1638.8,1638.6,1.06052166]
[1693768127246,3.22062489,1638.8,1638.5,0.64027822]
[1693768128847,3.22062489,1638.8,1638.4,1.60069556]
[1693768129020,3.6131,1638.7,1638.4,1.60069556]
[1693768129225,6.0549,1638.7,1638.4,1.60069556]
[1693768130659,6.0549,1638.7,1638.5,1.06053143]
[1693768130863,6.77644249,1638.7,1638.4,0.64027822]
[1693768131851,6.77644249,1638.7,1638.4,1.70081797]
[1693768132161,6.77644249,1638.7,1638.5,1.06053975]
[1693768132331,6.77644249,1638.7,1638.4,0.64027822]
[1693768135444,6.77644249,1638.7,1638.4,1.7008209]
[1693768135642,6.77644249,1638.7,1638.5,1.06054268]
[1693768135864,1.553,1638.6,1638.4,0.64027822]
[1693768136459,3.5493,1638.6,1638.4,0.64027822]
[1693768136766,3.5493,1638.6,1638.3,3.19126348]
[1693768136972,3.5493,1638.6,1638.4,1.06055529]
[1693768137127,3.5493,1638.6,1638.3,1.60069556]
[1693768137331,3.5493,1638.6,1638.3,2.66125055]
[1693768139446,3.5493,1638.6,1638.4,0.33973618]
[1693768139884,3.5493,1638.6,1638.3,1.60069556]
[1693768140077,3.5493,1638.6,1638.3,3.43068815]
[1693768140282,3.5493,1638.6,1638.4,1.06055487]
[1693768140671,3.5493,1638.6,1638.3,1.60069556]
[1693768140874,3.5493,1638.6,1638.3,2.66124116]
[1693768142465,3.5493,1638.6,1638.4,1.0605456]
[1693768142677,3.5493,1638.6,1638.3,1.60069556]
[1693768142974,3.5493,1638.6,1638.3,3.73068565]
[1693768143288,3.5493,1638.6,1638.4,1.06055237]
[1693768143498,1.9963,1638.6,1638.4,1.06055237]
[1693768147681,3.5493,1638.6,1638.3,1.60069556]
[1693768147985,3.5493,1638.6,1638.3,1.70082859]
[1693768148568,3.5493,1638.6,1638.3,2.66124593]
[1693768148768,3.5493,1638.6,1638.3,1.70082859]
[1693768148957,3.5493,1638.6,1638.4,1.06055037]
[1693768149157,3.5493,1638.6,1638.3,0.64027822]
[1693768149457,3.5493,1638.6,1638.3,1.70083029]
[1693768149655,3.5493,1638.6,1638.3,2.66124763]
[1693768150484,3.5493,1638.6,1638.4,1.06055207]
[1693768150692,3.5493,1638.6,1638.3,1.60069556]
[1693768150891,3.5493,1638.6,1638.3,2.66124695]
[1693768153489,4.14841,1638.6,1638.4,1.06055139]
[1693768153672,4.14841,1638.6,1638.3,1.60069556]
[1693768153879,4.14841,1638.6,1638.3,2.66124569]
[1693768154593,4.14841,1638.6,1638.4,0.37023604]
[1693768154963,4.14841,1638.6,1638.3,1.60069556]
[1693768155163,4.14841,1638.6,1638.3,2.66124749]
[1693768157392,3.5493,1638.6,1638.3,2.66124749]
[1693768158673,3.5493,1638.6,1638.4,1.70083015]
[1693768158871,3.5493,1638.6,1638.5,1.06055193]
[1693768159183,3.5493,1638.6,1638.4,0.64027822]
[1693768159362,3.5493,1638.6,1638.3,1.60069556]
[1693768159562,3.5493,1638.6,1638.3,2.66125484]
[1693768161279,3.5493,1638.6,1638.4,1.7008375]
[1693768161476,3.5493,1638.6,1638.5,1.06055928]
[1693768161875,3.5493,1638.6,1638.4,0.64027822]
[1693768168617,3.5493,1638.6,1638.4,1.60069556]
[1693768169620,3.5493,1638.6,1638.5,2.07084076]
[1693768183238,1.9963,1638.6,1638.5,2.07084076]
[1693768192250,4.5365,1638.7,1638.5,2.82216133]
[1693768192448,5.03343586,1638.9,1638.6,1.70172852]
[1693768192655,2.3674,1638.8,1638.6,2.07149903]
[1693768192952,2.3674,1638.8,1638.7,1.06055928]
[1693768199058,2.3674,1638.8,1638.6,2.07149903]
[1693768199259,2.3674,1638.8,1638.7,1.06055928]
[1693768199761,2.3674,1638.8,1638.7,0.36953779]
[1693768200452,3.6477,1638.9,1638.5,1.60158658]
[1693768200648,3.0,1639.0,1638.6,1.60158658]
[1693768200849,0.48338737,1639.1,1638.7,0.64116924]
[1693768201067,4.4504,1639.2,1638.7,1.60158658]
[1693768201266,2.4641,1639.2,1638.7,2.66205984]
[1693768201852,2.4641,1639.2,1638.8,1.7016425]
[1693768202069,2.4641,1639.2,1638.9,1.06047326]
[1693768202257,2.4641,1639.2,1638.7,1.60158658]
[1693768202461,2.4641,1639.2,1638.7,4.25248562]
[1693768202762,2.4641,1639.2,1638.8,0.42524856]
[1693768202935,1.9863,1639.3,1638.9,1.06031606]
[1693768203130,1.9863,1639.3,1638.8,1.0664178]
[1693768203455,4.9863,1639.3,1638.9,1.06031476]
[1693768203655,4.9863,1639.3,1638.8,0.42524856]
[1693768212438,6.5393,1639.3,1638.8,0.42524856]
[1693768213074,2.1202,1639.2,1638.8,0.42524856]
[1693768214386,2.1202,1639.2,1638.9,0.3675835]
[1693768214784,2.1202,1639.2,1638.8,0.42524856]
[1693768225797,2.1202,1639.2,1638.8,1.48550812]
[1693768225994,2.1202,1639.2,1638.9,1.06025956]
[1693768226795,2.1202,1639.2,1638.8,2.12667736]
[1693768226988,2.1202,1639.2,1638.9,1.06026193]
[1693768229517,2.1202,1639.2,1639.0,0.36735086]
[1693768230174,2.1202,1639.2,1638.8,1.0664178]
[1693768230379,2.1202,1639.2,1638.9,1.06025819]
[1693768231491,4.5435,1639.2,1638.9,1.06025819]
[1693768232016,0.00306034,1639.1,1638.9,1.06025819]
[1693768233009,4.5435,1639.2,1638.9,1.06025819]
[1693768235818,4.5435,1639.2,1638.8,3.08709333]
[1693768236119,4.5435,1639.2,1638.9,1.0602493]
[1693768236425,1.9639,1639.1,1638.9,1.0602493]
[1693768236892,1.9639,1639.1,1638.8,3.08708444]
[1693768237101,1.9639,1639.1,1638.9,1.06025552]
[1693768237789,1.9639,1639.1,1638.8,2.02683514]
[1693768237988,1.9639,1639.1,1638.9,1.06025907]
[1693768240089,0.00305301,1639.0,1638.9,1.06025907]
[1693768240311,0.00305301,1639.0,1638.9,1.36896849]
[1693768241828,0.00305301,1639.0,1638.9,2.01013773]
[1693768241989,0.00305301,1639.0,1638.9,1.36896849]
[1693768242791,0.00305301,1639.0,1638.9,2.01013773]
[1693768243433,0.00305301,1639.0,1638.9,5.09199177]
[1693768244017,2.1437,1639.2,1638.9,5.09199177]
[1693768244213,2.1437,1639.2,1639.0,1.06025907]
[1693768244650,2.1437,1639.2,1639.1,0.36711825]
[1693768245443,2.1437,1639.2,1638.9,4.0317327]
[1693768245602,2.1437,1639.2,1639.0,1.46341591]
[1693768245803,2.1437,1639.2,1639.0,0.40317327]
[1693768247913,0.0030589,1639.1,1639.0,0.40317327]
[1693768248113,0.0030589,1639.1,1639.0,1.46341852]
[1693768249057,2.1437,1639.2,1639.0,1.46341852]
[1693768249238,2.1437,1639.2,1639.0,0.40317327]
[1693768250027,0.00306178,1639.1,1639.0,0.40317327]
[1693768250249,0.00306178,1639.1,1639.0,1.46341234]
[1693768251018,2.1437,1639.2,1639.0,1.46341234]
[1693768251313,2.1437,1639.2,1639.0,0.40317327]
[1693768252147,0.00306178,1639.1,1639.0,0.40317327]
[1693768252352,0.00306178,1639.1,1639.0,1.46341397]
[1693768253052,2.1437,1639.2,1639.0,1.46341397]
[1693768253252,2.1437,1639.2,1639.0,0.40317327]
[1693768254052,0.00306178,1639.1,1639.0,0.40317327]
[1693768254253,0.00306178,1639.1,1639.0,1.46341456]
[1693768254955,2.1437,1639.2,1639.0,1.46341456]
[1693768255131,2.1437,1639.2,1639.0,0.40317327]
[1693768256045,0.00306178,1639.1,1639.0,0.40317327]
[1693768256225,0.00306178,1639.1,1639.0,1.46338519]
[1693768256956,2.1437,1639.2,1639.0,1.46338519]
[1693768257156,2.1437,1639.2,1638.9,4.99215004]
[1693768257335,2.1437,1639.2,1639.0,1.06021364]
[1693768257955,0.0030589,1639.1,1639.0,1.06021364]
[1693768259256,2.1437,1639.2,1639.0,1.06021364]
[1693768259626,2.1437,1639.2,1639.1,0.36711825]
[1693768260026,2.14677054,1639.2,1639.1,0.36711825]
[1693768260450,2.14677054,1639.2,1638.9,4.99215004]
[1693768260650,2.14677054,1639.2,1639.0,1.55943062]
[1693768260853,2.14677054,1639.2,1639.0,0.499215]
[1693768261826,0.00307054,1639.2,1639.1,3.72302328]
[1693768262044,2.2526,1639.4,1639.1,4.78316882]
[1693768262244,2.57045321,1639.5,1639.2,2.66173212]
[1693768262444,0.48555321,1639.5,1639.3,3.08185404]
[1693768262645,2.1859,1639.7,1639.4,1.36833094]
[1693768262963,2.1859,1639.7,1639.4,3.39003944]
[1693768263961,0.00306527,1639.6,1639.4,3.39003944]
[1693768264261,0.00306527,1639.6,1639.2,3.64116924]
[1693768264447,1.55606527,1639.6,1639.2,3.0]
[1693768264654,3.90756527,1639.6,1639.3,1.0600315]
[1693768265230,3.90756527,1639.6,1639.2,3.0]
[1693768265432,2.35456527,1639.6,1639.2,3.0]
[1693768265729,2.35456527,1639.6,1639.2,3.46015866]
[1693768266168,2.1233,1639.5,1639.2,3.46015866]
[1693768266968,0.00304918,1639.4,1639.2,3.46015866]
[1693768274481,0.00304918,1639.4,1639.3,0.36534789]
[1693768276781,0.00304918,1639.4,1639.3,1.42536973]
[1693768277079,0.00304918,1639.4,1639.3,1.93202363]
[1693768278383,0.00304918,1639.4,1639.3,1.42536973]
[1693768288603,0.00304918,1639.4,1639.3,1.42537349]
[1693768298605,1.55604918,1639.4,1639.3,0.36534789]
[1693768298987,1.55604918,1639.4,1639.1,4.59644136]
[1693768299187,3.97564918,1639.4,1639.3,0.40643769]
[1693768299413,4.5855441,1639.4,1639.3,0.40643769]
[1693768299990,4.5855441,1639.4,1639.1,4.59644136]
[1693768300189,4.5855441,1639.4,1639.2,1.06009163]
[1693768302610,3.97564918,1639.4,1639.2,1.06009163]
[1693768303905,3.97564918,1639.4,1639.2,1.69866817]
[1693768304597,3.97564918,1639.4,1639.3,0.40643769]
[1693768304804,3.97564918,1639.4,1639.3,1.46652932]
[1693768311426,3.97564918,1639.4,1639.3,1.41380132]
[1693768317808,2.42264918,1639.4,1639.3,1.41380132]
[1693768319535,0.00304918,1639.4,1639.3,1.41380132]
[1693768320008,3.9221,1639.6,1639.3,1.41380132]
[1693768320211,2.3691,1639.6,1639.3,0.35370969]
[1693768320934,0.00306715,1639.5,1639.3,0.35370969]
[1693768322802,0.00306715,1639.5,1639.3,0.99228623]
[1693768323001,0.00306715,1639.5,1639.4,1.06000858]
[1693768323402,0.00306715,1639.5,1639.4,1.4648515]
[1693768330938,0.00306715,1639.5,1639.4,0.40484292]
[1693768331238,0.59418386,1639.5,1639.4,0.40484292]
[1693768331415,0.59418386,1639.5,1639.2,0.63857654]
[1693768331603,0.59418386,1639.5,1639.2,1.69861504]
[1693768333050,2.69398386,1639.5,1639.2,1.69861504]
[1693768334645,2.69398386,1639.5,1639.3,0.46673403]
[1693768340241,4.24698386,1639.5,1639.3,0.46673403]
[1693768357591,2.69398386,1639.5,1639.3,0.46673403]
[1693768363251,2.10286715,1639.5,1639.3,0.46673403]
[1693768370795,2.10286715,1639.5,1639.3,2.16534019]
[1693768371006,2.10286715,1639.5,1639.4,1.06002962]
[1693768371501,2.10286715,1639.5,1639.4,1.52641452]
[1693768381991,2.10286715,1639.5,1639.4,0.4663849]
[1693768382195,2.70536387,1639.5,1639.2,1.59644136]
[1693768382595,2.70536387,1639.5,1639.3,0.46656545]
[1693768392013,2.7078259,1639.5,1639.3,0.46656545]
[1693768413962,4.2608259,1639.5,1639.3,0.46656545]
[1693768442058,2.7078259,1639.5,1639.3,0.46656545]
[1693768446310,2.6578259,1639.5,1639.3,0.46656545]
[1693768447215,2.05286715,1639.5,1639.3,0.46656545]
[1693768447395,2.15163755,1639.7,1639.3,0.46656545]
[1693768447881,4.58153755,1639.7,1639.3,0.46656545]
[1693768450105,4.58153755,1639.7,1639.3,2.16587157]
[1693768450309,4.58153755,1639.7,1639.4,1.06001823]
[1693768451204,4.58153755,1639.7,1639.3,0.63928789]
[1693768451392,4.58153755,1639.7,1639.3,1.69930747]
[1693768452211,4.58153755,1639.7,1639.3,2.0826414]
[1693768452405,4.58153755,1639.7,1639.4,1.06001958]
[1693768456503,4.48053755,1639.7,1639.4,1.06001958]
[1693768457106,4.48053755,1639.7,1639.3,0.38333393]
[1693768457325,2.0244,1639.6,1639.4,1.06001818]
[1693768457832,2.0244,1639.6,1639.3,0.38333393]
[1693768458000,3.5774,1639.6,1639.3,0.38333393]
[1693768458327,3.5774,1639.6,1639.4,0.50891452]